fUSD/lending_fUSD_20240814
["ID","MTS","AMOUNT","RATE_DAILY","PERIOD"]
[334822869,1723603959847,-1165.14,0.0001589,2]
[334822870,1723603959856,-500.0,0.0001589,2]
[334822871,1723603959866,-486.45647023,0.0001589,2]
[334822872,1723603959876,-3527.81,0.0001589,2]
[334822873,1723603959886,-500.0,0.0001589,2]
[334822874,1723603959895,-503.89,0.0001589,2]
[334822875,1723603959904,-500.0,0.0001589,2]
[334822876,1723603959913,-4643.86,0.0001589,2]
[334822877,1723603959924,-5304.78,0.0001589,2]
[334822878,1723603959934,-500.0,0.0001589,2]
[334822879,1723603959943,-793.68,0.0001589,2]
[334822880,1723603959952,-1291.51,0.0001589,2]
[334822881,1723603959961,-3534.72,0.0001589,2]
[334822882,1723603959972,-866.3,0.0001589,2]
[334822883,1723603959984,-4085.63,0.0001589,2]
[334822884,1723603959993,-500.0,0.0001589,2]
[334822885,1723603960002,-1860.39,0.0001589,2]
[334822886,1723603960011,-500.0,0.0001589,2]
[334822887,1723603960022,-500.0,0.0001589,2]
[334822888,1723603960031,-500.0,0.0001589,2]
[334822889,1723603960040,-8721.03,0.0001589,2]
[334822890,1723603960052,-545.46,0.0001589,2]
[334822891,1723603960061,-500.0,0.0001589,2]
[334822892,1723603960070,-505.23,0.0001589,2]
[334822893,1723603960080,-2674.62,0.0001589,2]
[334822894,1723603960089,-657.34,0.0001589,2]
[334822895,1723603960100,-500.0,0.0001589,2]
[334822896,1723603960110,-1060.17,0.0001589,2]
[334822897,1723603960120,-2300.78,0.0001589,2]
[334822898,1723603960130,-1807.13,0.0001589,2]
[334822899,1723603960140,-1069.54,0.0001589,2]
[334822900,1723603960150,-500.0,0.0001589,2]
[334822901,1723603960160,-4235.05,0.0001589,2]
[334822902,1723603960169,-500.0,0.0001589,2]
[334822903,1723603960179,-9482.49,0.0001589,2]
[334822904,1723603960188,-3912.2,0.0001589,2]
[334822905,1723603960197,-1133.78,0.0001589,2]
[334822906,1723603960208,-674.92,0.0001589,2]
[334822907,1723603960217,-500.0,0.0001589,2]
[334822908,1723603960227,-700.06,0.0001589,2]
[334822909,1723603960236,-726.24,0.0001589,2]
[334822910,1723603960245,-500.0,0.0001589,2]
[334822911,1723603960255,-3352.95,0.0001589,2]
[334822912,1723603960264,-500.0,0.0001589,2]
[334822913,1723603960274,-5658.96,0.0001589,2]
[334822914,1723603960284,-1004.73,0.0001589,2]
[334822915,1723603960293,-500.0,0.0001589,2]
[334822916,1723603960302,-625.91027366,0.0001589,2]
[334822917,1723603960312,-4266.51,0.0001589,2]
[334822918,1723603960322,-2152.34,0.0001589,2]
[334822919,1723603960332,-2495.73,0.0001589,2]
[334822920,1723603960341,-550.05,0.0001589,2]
[334822921,1723603960351,-500.0,0.0001589,2]
[334822922,1723603960361,-505.68916158,0.0001589,2]
[334822923,1723603960370,-500.0,0.0001589,2]
[334822924,1723603960380,-712.46,0.0001589,2]
[334822925,1723603960389,-1442.97,0.0001589,2]
[334822926,1723603960398,-3010.43,0.0001589,2]
[334822927,1723603960408,-4860.84,0.0001589,2]
[334822928,1723603960418,-936.95,0.0001589,2]
[334822929,1723603960429,-2182.64,0.0001589,2]
[334822930,1723603960438,-545.37,0.0001589,2]
[334822931,1723603960448,-500.0,0.0001589,2]
[334822932,1723603960457,-972.49,0.0001589,2]
[334822933,1723603960467,-500.0,0.0001589,2]
[334822934,1723603960477,-5817.55,0.0001589,2]
[334822935,1723603960486,-500.0,0.0001589,2]
[334822936,1723603960496,-16358.47,0.0001589,2]
[334822937,1723603960505,-1852.9,0.0001589,2]
[334822938,1723603960515,-1343.6,0.0001589,2]
[334822939,1723603960525,-1032.88,0.0001589,2]
[334822940,1723603960534,-500.0,0.0001589,2]
[334822941,1723603960544,-1649.15,0.0001589,2]
[334822942,1723603960554,-12284.49,0.0001589,2]
[334822943,1723603960563,-1289.77,0.0001589,2]
[334822944,1723603960572,-500.0,0.0001589,2]
[334822945,1723603960582,-517.19,0.0001589,2]
[334822946,1723603960591,-500.0,0.0001589,2]
[334822947,1723603960601,-3024.67,0.0001589,2]
[334822948,1723603960610,-571.44,0.0001589,2]
[334822949,1723603960619,-1347.07,0.0001589,2]
[334822950,1723603960628,-500.0,0.0001589,2]
[334822951,1723603960637,-500.0,0.0001589,2]
[334822952,1723603960647,-500.0,0.0001589,2]
[334822953,1723603960656,-2375.11,0.0001589,2]
[334822954,1723603960665,-5867.25,0.0001589,2]
[334822955,1723603960675,-1236.61,0.0001589,2]
[334822956,1723603960685,-15446.76,0.0001589,2]
[334822957,1723603960694,-1109.97,0.0001589,2]
[334822958,1723603960703,-811.27,0.0001589,2]
[334822959,1723603960712,-500.0,0.0001589,2]
[334822960,1723603960721,-500.0,0.0001589,2]
[334822961,1723603960730,-457.95230258,0.0001589,2]
[334822962,1723603960740,-1183.37,0.0001589,2]
[334822963,1723603960749,-1985.01,0.0001589,2]
[334822964,1723603960759,-500.0,0.0001589,2]
[334822965,1723603960768,-500.0,0.0001589,2]
[334822966,1723603960778,-500.0,0.0001589,2]
[334822967,1723603960787,-500.0,0.0001589,2]
[334822968,1723603960797,-3394.27,0.0001589,2]
[334822969,1723603960806,-500.0,0.0001589,2]
[334822970,1723603960815,-2263.87,0.0001589,2]
[334822971,1723603960824,-2208.39,0.0001589,2]
[334822972,1723603960833,-2351.17,0.0001589,2]
[334822973,1723603960843,-504.63,0.0001589,2]
[334822974,1723603960853,-531.97186183,0.0001589,2]
[334822975,1723603960862,-500.0,0.0001589,2]
[334822976,1723603960872,-534.4,0.0001589,2]
[334822977,1723603960882,-1991.48,0.0001589,2]
[334822978,1723603960892,-1195.4,0.0001589,2]
[334822979,1723603960902,-9415.38,0.0001589,2]
[334822980,1723603960911,-694.34,0.0001589,2]
[334822981,1723603960922,-500.0,0.0001589,2]
[334822982,1723603960932,-505.76,0.0001589,2]
[334822983,1723603960941,-500.0,0.0001589,2]
[334822984,1723603960951,-5022.91,0.0001589,2]
[334822985,1723603960961,-500.0,0.0001589,2]
[334822986,1723603960971,-3719.98,0.0001589,2]
[334822987,1723603960981,-3286.97,0.0001589,2]
[334822988,1723603960991,-500.0,0.0001589,2]
[334822989,1723603961000,-2601.74,0.0001589,2]
[334822990,1723603961011,-500.0,0.0001589,2]
[334822991,1723603961020,-2311.62,0.0001589,2]
[334822992,1723603961029,-925.2,0.0001589,2]
[334822993,1723603961039,-500.0,0.0001589,2]
[334822994,1723603961049,-500.0,0.0001589,2]
[334822995,1723603961061,-4841.27,0.0001589,2]
[334822996,1723603961071,-500.0,0.0001589,2]
[334822997,1723603961080,-4804.39,0.0001589,2]
[334822998,1723603961089,-2504.28,0.0001589,2]
[334822999,1723603961099,-30408.94,0.0001589,2]
[334823000,1723603961109,-500.0,0.0001589,2]
[334823001,1723603961119,-1009.0,0.0001589,2]
[334823002,1723603961128,-500.0,0.0001589,2]
[334823003,1723603961138,-500.0,0.0001589,2]
[334823004,1723603961147,-1655.13,0.0001589,2]
[334823005,1723603961157,-500.0,0.0001589,2]
[334823006,1723603961167,-500.0,0.0001589,2]
[334823007,1723603961177,-500.0,0.0001589,2]
[334823008,1723603961186,-541.79,0.0001589,2]
[334823009,1723603961195,-1939.34,0.0001589,2]
[334823010,1723603961206,-500.0,0.0001589,2]
[334823011,1723603961215,-602.44,0.0001589,2]
[334823012,1723603961225,-500.0,0.0001589,2]
[334823013,1723603961235,-5437.68,0.0001589,2]
[334823014,1723603961245,-3634.01,0.0001589,2]
[334823015,1723603961255,-500.0,0.0001589,2]
[334823016,1723603961264,-500.0,0.0001589,2]
[334823017,1723603961274,-500.0,0.0001589,2]
[334823018,1723603961284,-7831.1,0.0001589,2]
[334823019,1723603961295,-1038.5,0.0001589,2]
[334823020,1723603961305,-7282.92,0.0001589,2]
[334823021,1723603961315,-1618.42,0.0001589,2]
[334823022,1723603961324,-500.0,0.0001589,2]
[334823023,1723603961334,-1318.54,0.0001589,2]
[334823024,1723603961344,-3021.74,0.0001589,2]
[334823025,1723603961354,-887.76,0.0001589,2]
[334823026,1723603961363,-726.19,0.0001589,2]
[334823027,1723603961373,-500.0,0.0001589,2]
[334823028,1723603961382,-500.0,0.0001589,2]
[334823029,1723603961392,-640.09,0.0001589,2]
[334823030,1723603961402,-6303.41,0.0001589,2]
[334823031,1723603961412,-1486.12,0.0001589,2]
[334823032,1723603961422,-1465.83,0.0001589,2]
[334823033,1723603961432,-500.0,0.0001589,2]
[334823034,1723603961442,-2619.71,0.0001589,2]
[334823035,1723603961452,-500.0,0.0001589,2]
[334823036,1723603961461,-1599.17,0.0001589,2]
[334823037,1723603961471,-6526.45,0.0001589,2]
[334823038,1723603961480,-2403.52,0.0001589,2]
[334823039,1723603961489,-775.24,0.0001589,2]
[334823040,1723603961499,-617.42,0.0001589,2]
[334823041,1723603961508,-500.0,0.0001589,2]
[334823042,1723603961518,-500.0,0.0001589,2]
[334823043,1723603961527,-2020.58,0.0001589,2]
[334823044,1723603961537,-564.1,0.0001589,2]
[334823045,1723603961546,-500.0,0.0001589,2]
[334823046,1723603961555,-3030.89,0.0001589,2]
[334823047,1723603961565,-500.0,0.0001589,2]
[334823048,1723603961574,-970.69,0.0001589,2]
[334823049,1723603961583,-1492.57,0.0001589,2]
[334823050,1723603961593,-500.0,0.0001589,2]
[334823051,1723603961603,-8083.22,0.0001589,2]
[334823052,1723603961612,-2641.04,0.0001589,2]
[334823053,1723603961623,-748.52,0.0001589,2]
[334823054,1723603961632,-504.50343705,0.0001589,2]
[334823055,1723603961642,-3609.21,0.0001589,2]
[334823056,1723603961652,-500.0,0.0001589,2]
[334823057,1723603961662,-776.31,0.0001589,2]
[334823058,1723603961671,-500.0,0.0001589,2]
[334823059,1723603961681,-500.0,0.0001589,2]
[334823060,1723603961690,-6500.63,0.0001589,2]
[334823061,1723603961699,-500.0,0.0001589,2]
[334823062,1723603961709,-654.47,0.0001589,2]
[334823063,1723603961719,-12415.65,0.0001589,2]
[334823064,1723603961730,-500.0,0.0001589,2]
[334823065,1723603961740,-402.34366643,0.0001589,2]
[334823066,1723603961751,-851.45,0.0001589,2]
[334823067,1723603961760,-514.11,0.0001589,2]
[334823068,1723603961770,-1374.17,0.0001589,2]
[334823069,1723603961780,-500.0,0.0001589,2]
[334823070,1723603961790,-771.96,0.0001589,2]
[334823071,1723603961800,-500.0,0.0001589,2]
[334823072,1723603961810,-500.0,0.0001589,2]
[334823073,1723603961821,-1584.87,0.0001589,2]
[334823074,1723603961832,-733.22,0.0001589,2]
[334823075,1723603961842,-500.0,0.0001589,2]
[334823076,1723603961852,-2100.84,0.0001589,2]
[334823077,1723603961862,-6987.78,0.0001589,2]
[334823078,1723603961871,-500.0,0.0001589,2]
[334823079,1723603961880,-500.0,0.0001589,2]
[334823080,1723603961891,-37359.85,0.0001589,2]
[334823081,1723603961902,-500.0,0.0001589,2]
[334823082,1723603961911,-500.0,0.0001589,2]
[334823083,1723603961921,-4485.26,0.0001589,2]
[334823084,1723603961931,-801.55,0.0001589,2]
[334823085,1723603961940,-3325.54,0.0001589,2]
[334823086,1723603961950,-3101.62,0.0001589,2]
[334823087,1723603961959,-1740.94,0.0001589,2]
[334823088,1723603961969,-500.0,0.0001589,2]
[334823089,1723603961983,-706.4,0.0001589,2]
[334823090,1723603961992,-500.0,0.0001589,2]
[334823091,1723603962002,-551.94,0.0001589,2]
[334823092,1723603962011,-6739.6,0.0001589,2]
[334823093,1723603962021,-193.34143155,0.0001589,2]
[334823094,1723603962031,-500.0,0.0001589,2]
[334823095,1723603962042,-1984.33,0.0001589,2]
[334823096,1723603962053,-515.72,0.0001589,2]
[334823097,1723603962064,-885.1,0.0001589,2]
[334823098,1723603962074,-862.92,0.0001589,2]
[334823099,1723603962084,-1280.3,0.0001589,2]
[334823100,1723603962093,-1985.9,0.0001589,2]
[334823101,1723603962103,-313.03190667,0.0001589,2]
[334823102,1723603962113,-4340.54,0.0001589,2]
[334823103,1723603962123,-954.48,0.0001589,2]
[334823104,1723603962134,-7538.05,0.0001589,2]
[334823105,1723603962144,-2350.15,0.0001589,2]
[334823106,1723603962154,-500.0,0.0001589,2]
[334823107,1723603962163,-500.0,0.0001589,2]
[334823108,1723603962172,-1823.31,0.0001589,2]
[334823109,1723603962180,-600.0,0.00015922,2]
[334823110,1723603962190,-200.33,0.00015974,2]
[334823111,1723603962199,-152.47241704,0.00015984,2]
[334823112,1723603962209,-150.0,0.00016082,2]
[334823113,1723603962219,-152.47241704,0.00016093,2]
[334823114,1723603962229,-512.5101983,0.00016153,2]
[334823115,1723603962239,-3114.6614692,0.00016153,2]
[334823116,1723603962248,-2467.9241017,0.00016153,2]
[334823117,1723603962260,-500.0,0.00016164,2]
[334823118,1723603962269,-1500.86,0.00016164,2]
[334823119,1723603962279,-500.0,0.00016164,2]
[334823120,1723603962288,-500.0,0.00016164,2]
[334823121,1723603962297,-501.67065093,0.00016164,2]
[334823122,1723603962306,-500.0,0.00016164,2]
[334823123,1723603962315,-500.0,0.00016164,2]
[334823124,1723603962324,-1717.68,0.00016164,2]
[334823125,1723603962334,-500.0,0.00016164,2]
[334823126,1723603962344,-1135.6,0.00016164,2]
[334823127,1723603962353,-500.0,0.00016164,2]
[334823128,1723603962362,-500.0,0.00016164,2]
[334823129,1723603962371,-500.0,0.00016164,2]
[334823130,1723603962380,-500.0,0.00016164,2]
[334823131,1723603962389,-502.79642247,0.00016164,2]
[334823132,1723603962398,-505.87,0.00016164,2]
[334823133,1723603962407,-668.17,0.00016164,2]
[334823134,1723603962419,-2087.27,0.00016164,2]
[334823135,1723603962432,-1187.42,0.00016164,2]
[334823136,1723603962444,-504.46,0.00016164,2]
[334823137,1723603962453,-500.0,0.00016164,2]
[334823138,1723603962462,-500.0,0.00016164,2]
[334823139,1723603962471,-639.38,0.00016164,2]
[334823140,1723603962480,-500.0,0.00016164,2]
[334823141,1723603962489,-500.0,0.00016164,2]
[334823142,1723603962498,-500.0,0.00016164,2]
[334823143,1723603962507,-500.0,0.00016164,2]
[334823144,1723603962517,-500.0,0.00016164,2]
[334823145,1723603962526,-505.65182651,0.00016164,2]
[334823146,1723603962536,-1269.99,0.00016164,2]
[334823147,1723603962545,-500.0,0.00016164,2]
[334823148,1723603962554,-506.95436656,0.00016164,2]
[334823149,1723603962563,-500.0,0.00016164,2]
[334823150,1723603962572,-500.0,0.00016164,2]
[334823151,1723603962581,-711.22,0.00016164,2]
[334823152,1723603962590,-942.4,0.00016164,2]
[334823153,1723603962599,-1243.83,0.00016164,2]
[334823154,1723603962608,-1433.34,0.00016164,2]
[334823155,1723603962617,-510.72848855,0.00016164,2]
[334823156,1723603962626,-641.88,0.00016164,2]
[334823157,1723603962635,-500.0,0.00016164,2]
[334823158,1723603962644,-681.49,0.00016164,2]
[334823159,1723603962653,-596.25,0.00016164,2]
[334823160,1723603962662,-514.21,0.00016164,2]
[334823161,1723603962672,-500.0,0.00016164,2]
[334823162,1723603962681,-500.0,0.00016164,2]
[334823163,1723603962690,-840.72,0.00016164,2]
[334823164,1723603962699,-157.056626,0.00016164,2]
[334823165,1723603962708,-543.42248267,0.00016164,2]
[334823166,1723603962718,-519.79,0.00016164,2]
[334823167,1723603962728,-500.0,0.00016164,2]
[334823168,1723603962739,-261.440025,0.00016164,2]
[334823169,1723603962750,-1752.99,0.00016164,2]
[334823170,1723603962761,-500.0,0.00016164,2]
[334823171,1723603962771,-500.0,0.00016164,2]
[334823172,1723603962779,-681.04,0.00016164,2]
[334823173,1723603962789,-500.0,0.00016164,2]
[334823174,1723603962799,-500.0,0.00016164,2]
[334823175,1723603962811,-500.0,0.00016164,2]
[334823176,1723603962822,-500.0,0.00016164,2]
[334823177,1723603962832,-500.0,0.00016164,2]
[334823178,1723603962842,-515.84,0.00016164,2]
[334823179,1723603962852,-500.0,0.00016164,2]
[334823180,1723603962863,-500.0,0.00016164,2]
[334823181,1723603962873,-500.0,0.00016164,2]
[334823182,1723603962882,-788.88,0.00016164,2]
[334823183,1723603962892,-500.0,0.00016164,2]
[334823184,1723603962902,-500.0,0.00016164,2]
[334823185,1723603962912,-489.1907491,0.00016164,2]
[334823186,1723603962923,-540.27,0.00016164,2]
[334823187,1723603962932,-500.0,0.00016164,2]
[334823188,1723603962942,-500.0,0.00016164,2]
[334823189,1723603962951,-500.0,0.00016164,2]
[334823190,1723603962961,-500.0,0.00016164,2]
[334823191,1723603962971,-539.27,0.00016164,2]
[334823192,1723603962985,-500.0,0.00016164,2]
[334823193,1723603962995,-556.85,0.00016164,2]
[334823194,1723603963004,-510.55,0.00016164,2]
[334823195,1723603963014,-1828.99,0.00016164,2]
[334823196,1723603963025,-500.0,0.00016164,2]
[334823197,1723603963037,-500.0,0.00016164,2]
[334823198,1723603963047,-521.14,0.00016164,2]
[334823199,1723603963059,-500.0,0.00016164,2]
[334823200,1723603963070,-500.0,0.00016164,2]
[334823201,1723603963080,-500.0,0.00016164,2]
[334823202,1723603963090,-500.0,0.00016164,2]
[334823203,1723603963099,-500.0,0.00016164,2]
[334823204,1723603963109,-500.0,0.00016164,2]
[334823205,1723603963119,-500.0,0.00016164,2]
[334823206,1723603963128,-788.86,0.00016164,2]
[334823207,1723603963138,-500.0,0.00016164,2]
[334823208,1723603963147,-500.0,0.00016164,2]
[334823209,1723603963156,-500.0,0.00016164,2]
[334823210,1723603963166,-570.12,0.00016164,2]
[334823211,1723603963175,-710.6,0.00016164,2]
[334823212,1723603963184,-500.0,0.00016164,2]
[334823213,1723603963194,-500.0,0.00016164,2]
[334823214,1723603963203,-767.65,0.00016164,2]
[334823215,1723603963212,-550.4,0.00016164,2]
[334823216,1723603963222,-500.0,0.00016164,2]
[334823217,1723603963231,-500.0,0.00016164,2]
[334823218,1723603963241,-500.0,0.00016164,2]
[334823219,1723603963250,-500.0,0.00016164,2]
[334823220,1723603963260,-500.0,0.00016164,2]
[334823221,1723603963269,-1176.84,0.00016164,2]
[334823222,1723603963279,-593.23,0.00016164,2]
[334823223,1723603963288,-500.0,0.00016164,2]
[334823224,1723603963298,-500.0,0.00016164,2]
[334823225,1723603963308,-500.0,0.00016164,2]
[334823226,1723603963317,-500.0,0.00016164,2]
[334823227,1723603963326,-500.0,0.00016164,2]
[334823228,1723603963336,-500.0,0.00016164,2]
[334823229,1723603963345,-1645.84,0.00016164,2]
[334823230,1723603963355,-500.0,0.00016164,2]
[334823231,1723603963364,-500.0,0.00016164,2]
[334823232,1723603963373,-500.0,0.00016164,2]
[334823233,1723603963382,-500.0,0.00016164,2]
[334823234,1723603963392,-527.39,0.00016164,2]
[334823235,1723603963402,-500.0,0.00016164,2]
[334823236,1723603963411,-500.0,0.00016164,2]
[334823237,1723603963424,-679.23,0.00016164,2]
[334823238,1723603963434,-500.0,0.00016164,2]
[334823239,1723603963444,-308.07902314,0.00016164,2]
[334823240,1723603963454,-1488.54,0.00016164,2]
[334823241,1723603963463,-500.0,0.00016164,2]
[334823242,1723603963473,-500.0,0.00016164,2]
[334823243,1723603963483,-500.0,0.00016164,2]
[334823244,1723603963493,-625.85,0.00016164,2]
[334823245,1723603963504,-505.1663357,0.00016164,2]
[334823246,1723603963514,-500.0,0.00016164,2]
[334823247,1723603963523,-500.0,0.00016164,2]
[334823248,1723603963533,-3037.22,0.00016164,2]
[334823249,1723603963543,-500.0,0.00016164,2]
[334823250,1723603963553,-500.0,0.00016164,2]
[334823251,1723603963563,-500.0,0.00016164,2]
[334823252,1723603963572,-1050.9,0.00016164,2]
[334823253,1723603963582,-500.0,0.00016164,2]
[334823254,1723603963591,-507.61762868,0.00016164,2]
[334823255,1723603963601,-500.0,0.00016164,2]
[334823256,1723603963611,-500.0,0.00016164,2]
[334823257,1723603963621,-500.0,0.00016164,2]
[334823258,1723603963630,-500.0,0.00016164,2]
[334823259,1723603963640,-500.0,0.00016164,2]
[334823260,1723603963650,-500.0,0.00016164,2]
[334823261,1723603963659,-500.0,0.00016164,2]
[334823262,1723603963669,-647.36311502,0.00016164,2]
[334823263,1723603963681,-898.04,0.00016164,2]
[334823264,1723603963691,-500.0,0.00016164,2]
[334823265,1723603963701,-1015.12,0.00016164,2]
[334823266,1723603963710,-500.0,0.00016164,2]
[334823267,1723603963719,-677.19,0.00016164,2]
[334823268,1723603963729,-500.0,0.00016164,2]
[334823269,1723603963739,-3125.45,0.00016164,2]
[334823270,1723603963748,-2121.22,0.00016164,2]
[334823271,1723603963758,-935.8,0.00016164,2]
[334823272,1723603963767,-500.0,0.00016164,2]
[334823273,1723603963776,-2706.39,0.00016164,2]
[334823274,1723603963786,-500.0,0.00016164,2]
[334823275,1723603963796,-500.0,0.00016164,2]
[334823276,1723603963805,-500.0,0.00016164,2]
[334823277,1723603963815,-4210.94,0.00016164,2]
[334823278,1723603963825,-4601.07,0.00016164,2]
[334823279,1723603963835,-500.0,0.00016164,2]
[334823280,1723603963845,-1228.41,0.00016164,2]
[334823281,1723603963855,-500.0,0.00016164,2]
[334823282,1723603963864,-951.16,0.00016164,2]
[334823283,1723603963874,-500.0,0.00016164,2]
[334823284,1723603963884,-919.64,0.00016164,2]
[334823285,1723603963893,-584.56,0.00016164,2]
[334823286,1723603963903,-1794.95,0.00016164,2]
[334823287,1723603963912,-3321.93,0.00016164,2]
[334823288,1723603963922,-1422.69,0.00016164,2]
[334823289,1723603963931,-607.83355016,0.00016164,2]
[334823290,1723603963941,-2496.28,0.00016164,2]
[334823291,1723603963951,-500.0,0.00016164,2]
[334823292,1723603963961,-1937.4,0.00016164,2]
[334823293,1723603963970,-702.18,0.00016164,2]
[334823294,1723603963985,-500.0,0.00016164,2]
[334823295,1723603963994,-500.0,0.00016164,2]
[334823296,1723603964003,-525.91,0.00016164,2]
[334823297,1723603964014,-720.77,0.00016164,2]
[334823298,1723603964025,-2973.74,0.00016164,2]
[334823299,1723603964034,-657.62,0.00016164,2]
[334823300,1723603964044,-2208.41,0.00016164,2]
[334823301,1723603964054,-2020.58,0.00016164,2]
[334823302,1723603964064,-500.0,0.00016164,2]
[334823303,1723603964075,-956.36,0.00016164,2]
[334823304,1723603964085,-500.0,0.00016164,2]
[334823305,1723603964094,-500.0,0.00016164,2]
[334823306,1723603964104,-830.48,0.00016164,2]
[334823307,1723603964113,-908.14,0.00016164,2]
[334823308,1723603964123,-500.0,0.00016164,2]
[334823309,1723603964134,-1531.76,0.00016164,2]
[334823310,1723603964144,-806.72,0.00016164,2]
[334823311,1723603964154,-1233.68,0.00016164,2]
[334823312,1723603964164,-3549.23,0.00016164,2]
[334823313,1723603964176,-506.83,0.00016164,2]
[334823314,1723603964187,-881.49,0.00016164,2]
[334823315,1723603964197,-1686.3,0.00016164,2]
[334823316,1723603964207,-500.0,0.00016164,2]
[334823317,1723603964216,-1104.64,0.00016164,2]
[334823318,1723603964226,-500.0,0.00016164,2]
[334823319,1723603964236,-959.01,0.00016164,2]
[334823320,1723603964246,-3432.32,0.00016164,2]
[334823321,1723603964257,-3444.79,0.00016164,2]
[334823322,1723603964266,-500.0,0.00016164,2]
[334823323,1723603964276,-500.0,0.00016164,2]
[334823324,1723603964285,-1279.57,0.00016164,2]
[334823325,1723603964295,-500.0,0.00016164,2]
[334823326,1723603964305,-500.0,0.00016164,2]
[334823327,1723603964315,-644.3,0.00016164,2]
[334823328,1723603964325,-500.0,0.00016164,2]
[334823329,1723603964335,-526.04,0.00016164,2]
[334823330,1723603964345,-500.0,0.00016164,2]
[334823331,1723603964355,-604.27,0.00016164,2]
[334823332,1723603964365,-1106.38,0.00016164,2]
[334823333,1723603964375,-1190.65,0.00016164,2]
[334823334,1723603964386,-1152.6,0.00016164,2]
[334823335,1723603964395,-500.0,0.00016164,2]
[334823336,1723603964406,-621.41,0.00016164,2]
[334823337,1723603964417,-500.0,0.00016164,2]
[334823338,1723603964430,-500.0,0.00016164,2]
[334823339,1723603964440,-3396.28,0.00016164,2]
[334823340,1723603964450,-500.0,0.00016164,2]
[334823341,1723603964461,-891.26,0.00016164,2]
[334823342,1723603964471,-904.92,0.00016164,2]
[334823343,1723603964481,-500.0,0.00016164,2]
[334823344,1723603964491,-500.0,0.00016164,2]
[334823345,1723603964500,-2942.78,0.00016164,2]
[334823346,1723603964510,-500.0,0.00016164,2]
[334823347,1723603964520,-500.0,0.00016164,2]
[334823348,1723603964530,-692.81,0.00016164,2]
[334823349,1723603964540,-671.73,0.00016164,2]
[334823350,1723603964551,-500.0,0.00016164,2]
[334823351,1723603964562,-1883.45,0.00016164,2]
[334823352,1723603964572,-500.0,0.00016164,2]
[334823353,1723603964583,-4358.76,0.00016164,2]
[334823354,1723603964593,-531.95,0.00016164,2]
[334823355,1723603964603,-500.0,0.00016164,2]
[334823356,1723603964612,-500.0,0.00016164,2]
[334823357,1723603964622,-852.51,0.00016164,2]
[334823358,1723603964631,-601.64,0.00016164,2]
[334823359,1723603964641,-500.0,0.00016164,2]
[334823360,1723603964652,-1102.89,0.00016164,2]
[334823361,1723603964661,-500.0,0.00016164,2]
[334823362,1723603964671,-500.0,0.00016164,2]
[334823363,1723603964682,-3773.36,0.00016164,2]
[334823364,1723603964692,-1274.4,0.00016164,2]
[334823365,1723603964702,-1238.0,0.00016164,2]
[334823366,1723603964712,-500.0,0.00016164,2]
[334823367,1723603964722,-3131.44,0.00016164,2]
[334823368,1723603964732,-500.0,0.00016164,2]